[Event "Late-Titled-Tuesday-Blitz-February-27-2024"]
[Site "Chess.com"]
[Date "2024.02.27"]
[Round "11"]
[White "Jospem"]
[Black "Sanan_Sjugirov"]
[Result "1/2-1/2"]
[WhiteElo "3065"]
[BlackElo "2978"]
[TimeControl "180+1"]
[EndTime "16:05:56 PST"]
[Termination "Game drawn by repetition"]

1. e4 {[%clk 0:03:00.9]} 1... c5 {[%clk 0:03:00.3]} 2. Nf3 {[%clk 0:02:59.1]}
2... Nc6 {[%clk 0:03:00.7]} 3. c3 {[%clk 0:02:55.6]} 3... Nf6 {[%clk 0:03:00.4]}
4. Bd3 {[%clk 0:02:50.2]} 4... e5 {[%clk 0:02:56.7]} 5. Bc2 {[%clk 0:02:50.5]}
5... d5 {[%clk 0:02:54.3]} 6. d3 {[%clk 0:02:51.1]} 6... Be7 {[%clk 0:02:53.9]}
7. Bg5 {[%clk 0:02:49.8]} 7... O-O {[%clk 0:02:52.8]} 8. Bxf6 {[%clk 0:02:49.9]}
8... Bxf6 {[%clk 0:02:53]} 9. Nbd2 {[%clk 0:02:50.7]} 9... Be6 {[%clk
0:02:48.4]} 10. O-O {[%clk 0:02:50.9]} 10... dxe4 {[%clk 0:02:36.8]} 11. dxe4
{[%clk 0:02:49.4]} 11... c4 {[%clk 0:02:34.9]} 12. Qe2 {[%clk 0:02:49]} 12... b5
{[%clk 0:02:32.9]} 13. b3 {[%clk 0:02:43.7]} 13... Na5 {[%clk 0:02:23.2]} 14.
bxc4 {[%clk 0:02:37.9]} 14... Nxc4 {[%clk 0:02:20.9]} 15. Bb3 {[%clk 0:02:37.7]}
15... Rc8 {[%clk 0:02:20]} 16. Bxc4 {[%clk 0:02:34.6]} 16... Bxc4 {[%clk
0:02:19.6]} 17. Nxc4 {[%clk 0:02:34.9]} 17... Rxc4 {[%clk 0:02:20.5]} 18. a4
{[%clk 0:02:32.7]} 18... Rxa4 {[%clk 0:02:17.7]} 19. Qxb5 {[%clk 0:02:31.8]}
19... Rxe4 {[%clk 0:02:14.5]} 20. Rxa7 {[%clk 0:02:28.7]} 20... Qc8 {[%clk
0:02:12.5]} 21. Nd2 {[%clk 0:02:22.4]} 21... Rg4 {[%clk 0:02:08.2]} 22. Qe2
{[%clk 0:02:11.9]} 22... Rg6 {[%clk 0:01:49.9]} 23. Ne4 {[%clk 0:02:10]} 23...
Bd8 {[%clk 0:01:44]} 24. Ng3 {[%clk 0:02:00.6]} 24... Qxc3 {[%clk 0:01:37.5]}
25. Rd1 {[%clk 0:01:50.5]} 25... Bb6 {[%clk 0:01:33.3]} 26. Rb7 {[%clk
0:01:50.9]} 26... Qc6 {[%clk 0:01:30.6]} 27. Qe4 {[%clk 0:01:30.5]} 27... Qxe4
{[%clk 0:01:17.9]} 28. Nxe4 {[%clk 0:01:31.4]} 28... Bd4 {[%clk 0:01:18]} 29.
Rc1 {[%clk 0:01:17.6]} 29... f5 {[%clk 0:01:11.5]} 30. Ng3 {[%clk 0:01:17.8]}
30... h6 {[%clk 0:00:40]} 31. Kf1 {[%clk 0:01:16.4]} 31... Kh7 {[%clk
0:00:37.7]} 32. Rcc7 {[%clk 0:01:12.4]} 32... e4 {[%clk 0:00:35.9]} 33. Rf7
{[%clk 0:01:05.9]} 33... Rxf7 {[%clk 0:00:31.1]} 34. Rxf7 {[%clk 0:01:06.8]}
34... Ra6 {[%clk 0:00:31.1]} 35. Rxf5 {[%clk 0:00:58.2]} 35... Ra1+ {[%clk
0:00:31]} 36. Ke2 {[%clk 0:00:58.9]} 36... Ra2+ {[%clk 0:00:31.6]} 37. Ke1
{[%clk 0:00:59.4]} 37... Ra1+ {[%clk 0:00:31.7]} 38. Ke2 {[%clk 0:00:57.5]}
38... Ra2+ {[%clk 0:00:32.2]} 39. Kd1 {[%clk 0:00:58.1]} 39... Ra1+ {[%clk
0:00:18]} 40. Kc2 {[%clk 0:00:56.7]} 40... Ra2+ {[%clk 0:00:17.1]} 41. Kb3
{[%clk 0:00:57.3]} 41... Rxf2 {[%clk 0:00:15.1]} 42. Rxf2 {[%clk 0:00:57.4]}
42... Bxf2 {[%clk 0:00:16]} 43. Nxe4 {[%clk 0:00:58.3]} 43... Bg1 {[%clk
0:00:16.4]} 44. h3 {[%clk 0:00:57.5]} 44... Kg6 {[%clk 0:00:16.8]} 45. Kc4
{[%clk 0:00:58.1]} 45... Kf5 {[%clk 0:00:17.1]} 46. Ng3+ {[%clk 0:00:56]} 46...
Kg5 {[%clk 0:00:14.7]} 47. Kd3 {[%clk 0:00:54.6]} 47... Bh2 {[%clk 0:00:12.6]}
48. Ne2 {[%clk 0:00:52.5]} 48... Kf5 {[%clk 0:00:11.6]} 49. Ke3 {[%clk
0:00:51.6]} 49... Be5 {[%clk 0:00:11.4]} 50. Kf3 {[%clk 0:00:52.2]} 50... h5
{[%clk 0:00:11.5]} 51. Nc1 {[%clk 0:00:46.3]} 51... g5 {[%clk 0:00:11.6]} 52.
Ke2 {[%clk 0:00:46.9]} 52... g4 {[%clk 0:00:11.6]} 53. Nd3 {[%clk 0:00:47.6]}
53... gxh3 {[%clk 0:00:11.6]} 54. gxh3 {[%clk 0:00:48.5]} 54... Ke4 {[%clk
0:00:11]} 55. Nxe5 {[%clk 0:00:48.6]} 55... Kxe5 {[%clk 0:00:11.4]} 56. Kf3
{[%clk 0:00:49.4]} 56... Kf5 {[%clk 0:00:12]} 57. h4 {[%clk 0:00:49.9]} 57...
Ke5 {[%clk 0:00:12.2]} 58. Ke3 {[%clk 0:00:50.6]} 58... Kf5 {[%clk 0:00:13]} 59.
Kf3 {[%clk 0:00:51.5]} 59... Ke5 {[%clk 0:00:13.8]} 60. Ke3 {[%clk 0:00:52.4]}
60... Kf5 {[%clk 0:00:14.7]} 61. Kf3 {[%clk 0:00:53.3]} 1/2-1/2

[Event "Late-Titled-Tuesday-Blitz-February-27-2024"]
[Site "Chess.com"]
[Date "2024.02.27"]
[Round "11"]
[White "mishanick"]
[Black "Adar_07"]
[Result "1-0"]
[WhiteElo "3074"]
[BlackElo "2814"]
[TimeControl "180+1"]
[EndTime "16:05:57 PST"]
[Termination "mishanick won by resignation"]

1. d4 {[%clk 0:03:00.9]} 1... Nf6 {[%clk 0:02:59.7]} 2. c4 {[%clk 0:03:01.6]}
2... e6 {[%clk 0:02:59.9]} 3. Nc3 {[%clk 0:03:02.2]} 3... Bb4 {[%clk 0:02:59.9]}
4. e3 {[%clk 0:03:02.9]} 4... b6 {[%clk 0:02:59.6]} 5. Ne2 {[%clk 0:02:59.2]}
5... Bb7 {[%clk 0:02:59.6]} 6. a3 {[%clk 0:02:58.9]} 6... Be7 {[%clk 0:02:59.1]}
7. d5 {[%clk 0:02:58.8]} 7... O-O {[%clk 0:02:58]} 8. Ng3 {[%clk 0:02:56.4]}
8... Re8 {[%clk 0:02:53.4]} 9. Be2 {[%clk 0:02:53.7]} 9... a5 {[%clk 0:02:26.8]}
10. O-O {[%clk 0:02:52.8]} 10... Na6 {[%clk 0:02:26.9]} 11. e4 {[%clk
0:02:51.9]} 11... Nc5 {[%clk 0:02:26.7]} 12. Be3 {[%clk 0:02:44.6]} 12... exd5
{[%clk 0:02:17.7]} 13. cxd5 {[%clk 0:02:41.4]} 13... Bf8 {[%clk 0:02:13.2]} 14.
Qc2 {[%clk 0:02:20.5]} 14... c6 {[%clk 0:01:54.7]} 15. Rad1 {[%clk 0:01:43.2]}
15... cxd5 {[%clk 0:01:53.5]} 16. exd5 {[%clk 0:01:43.6]} 16... Rc8 {[%clk
0:01:52.2]} 17. Bb5 {[%clk 0:01:41.5]} 17... Nce4 {[%clk 0:01:20.3]} 18. Ngxe4
{[%clk 0:01:34.1]} 18... Nxe4 {[%clk 0:01:20.1]} 19. Qb3 {[%clk 0:01:16.8]}
19... Nxc3 {[%clk 0:01:10.2]} 20. bxc3 {[%clk 0:01:17.7]} 20... Bc5 {[%clk
0:01:07.7]} 21. c4 {[%clk 0:01:10.4]} 21... Bxe3 {[%clk 0:00:49.3]} 22. fxe3
{[%clk 0:01:09.8]} 22... Re5 {[%clk 0:00:50]} 23. Rd4 {[%clk 0:01:03.3]} 23...
Qe7 {[%clk 0:00:44]} 24. Rf3 {[%clk 0:01:00.5]} 24... Re8 {[%clk 0:00:29]} 25.
Kf2 {[%clk 0:01:00.3]} 25... Rc8 {[%clk 0:00:24.3]} 26. Qd3 {[%clk 0:00:45.5]}
26... Rc5 {[%clk 0:00:21.5]} 27. a4 {[%clk 0:00:43.4]} 27... d6 {[%clk
0:00:18.6]} 28. Rdf4 {[%clk 0:00:36.2]} 28... f6 {[%clk 0:00:15.8]} 29. Rh4
{[%clk 0:00:35.4]} 29... g6 {[%clk 0:00:12.7]} 30. Rhf4 {[%clk 0:00:34.4]} 30...
Kg7 {[%clk 0:00:10.3]} 31. Rxf6 {[%clk 0:00:29.8]} 31... Qxf6 {[%clk 0:00:11.2]}
32. Rxf6 {[%clk 0:00:30.1]} 32... Kxf6 {[%clk 0:00:12.1]} 33. Qd4 {[%clk
0:00:30.8]} 33... Bc8 {[%clk 0:00:10.5]} 34. Qh4+ {[%clk 0:00:31.1]} 34... Kg7
{[%clk 0:00:09.7]} 35. Qd8 {[%clk 0:00:30.9]} 35... Rf5+ {[%clk 0:00:09.7]} 36.
Ke2 {[%clk 0:00:30.4]} 36... Rf6 {[%clk 0:00:09.2]} 37. Qxb6 {[%clk 0:00:28.2]}
37... Bg4+ {[%clk 0:00:09.1]} 38. Kd3 {[%clk 0:00:28.7]} 38... Rc8 {[%clk
0:00:06.3]} 39. Qxa5 {[%clk 0:00:27]} 39... Rf7 {[%clk 0:00:04]} 40. Qb6 {[%clk
0:00:25.6]} 40... Bf5+ {[%clk 0:00:03.5]} 41. Kc3 {[%clk 0:00:24.5]} 41... Be4
{[%clk 0:00:03.2]} 42. Qd4+ {[%clk 0:00:24.8]} 1-0

[Event "Late-Titled-Tuesday-Blitz-February-27-2024"]
[Site "Chess.com"]
[Date "2024.02.27"]
[Round "11"]
[White "ninguno46"]
[Black "chess94cu"]
[Result "1-0"]
[WhiteElo "2610"]
[BlackElo "2687"]
[TimeControl "180+1"]
[EndTime "16:05:58 PST"]
[Termination "ninguno46 won by resignation"]

1. e4 {[%clk 0:02:59.7]} 1... e5 {[%clk 0:02:58.3]} 2. Nf3 {[%clk 0:02:59.1]}
2... Nc6 {[%clk 0:02:58.9]} 3. d4 {[%clk 0:02:59.4]} 3... exd4 {[%clk
0:02:58.7]} 4. Bc4 {[%clk 0:03:00]} 4... Bc5 {[%clk 0:02:57.8]} 5. O-O {[%clk
0:02:59.1]} 5... Nf6 {[%clk 0:02:57]} 6. e5 {[%clk 0:02:56.8]} 6... d5 {[%clk
0:02:55.2]} 7. Bb5 {[%clk 0:02:54.7]} 7... Ne4 {[%clk 0:02:45.1]} 8. Nxd4 {[%clk
0:02:54.4]} 8... Bd7 {[%clk 0:02:42.5]} 9. Bxc6 {[%clk 0:02:52.8]} 9... bxc6
{[%clk 0:02:41]} 10. Be3 {[%clk 0:02:45.2]} 10... Bb6 {[%clk 0:02:38.2]} 11. Nc3
{[%clk 0:02:44.6]} 11... Nxc3 {[%clk 0:02:37.2]} 12. bxc3 {[%clk 0:02:44.2]}
12... O-O {[%clk 0:02:38.1]} 13. f4 {[%clk 0:02:40.6]} 13... Qe7 {[%clk
0:02:36.8]} 14. Qd2 {[%clk 0:02:36.2]} 14... c5 {[%clk 0:02:36.2]} 15. Nb3
{[%clk 0:02:31.9]} 15... Bc6 {[%clk 0:02:35]} 16. Qf2 {[%clk 0:02:30.2]} 16...
d4 {[%clk 0:02:29.9]} 17. cxd4 {[%clk 0:02:29.8]} 17... c4 {[%clk 0:02:27.3]}
18. Nc5 {[%clk 0:02:19.5]} 18... Bxc5 {[%clk 0:02:22.7]} 19. dxc5 {[%clk
0:02:19.2]} 19... Rad8 {[%clk 0:02:21.2]} 20. Bd4 {[%clk 0:02:16.3]} 20... Qd7
{[%clk 0:02:15.5]} 21. c3 {[%clk 0:02:15.3]} 21... Qf5 {[%clk 0:02:14.6]} 22.
Rae1 {[%clk 0:02:11.9]} 22... Rfe8 {[%clk 0:02:13.8]} 23. Re3 {[%clk 0:02:11.4]}
23... Re6 {[%clk 0:02:13.2]} 24. Rg3 {[%clk 0:02:08.6]} 24... Rb8 {[%clk
0:02:10.8]} 25. Rg5 {[%clk 0:02:06.1]} 25... Qd3 {[%clk 0:02:04.8]} 26. f5
{[%clk 0:02:05.4]} 26... Rh6 {[%clk 0:02:04.9]} 27. e6 {[%clk 0:01:55.2]} 27...
f6 {[%clk 0:02:04.2]} 28. Rg3 {[%clk 0:01:53.8]} 28... Qe4 {[%clk 0:02:04.1]}
29. Qf4 {[%clk 0:01:42.2]} 29... Qxf4 {[%clk 0:01:47.4]} 30. Rxf4 {[%clk
0:01:41.6]} 30... Rb1+ {[%clk 0:01:47]} 31. Kf2 {[%clk 0:01:41.2]} 31... Rb2+
{[%clk 0:01:35.2]} 32. Ke3 {[%clk 0:01:40.6]} 32... Rxh2 {[%clk 0:01:31.7]} 33.
Bxf6 {[%clk 0:01:37.3]} 33... Rhxg2 {[%clk 0:01:31.2]} 34. Rxg2 {[%clk
0:01:33.7]} 34... Rxg2 {[%clk 0:01:32.1]} 35. Be5 {[%clk 0:01:31.6]} 35... Bd5
{[%clk 0:01:19.9]} 36. Bxc7 {[%clk 0:01:30.2]} 36... g6 {[%clk 0:01:00.6]} 37.
Kd4 {[%clk 0:01:27.5]} 37... Rd2+ {[%clk 0:00:57.7]} 38. Ke5 {[%clk 0:01:27.3]}
38... gxf5 {[%clk 0:00:58]} 39. Rxf5 {[%clk 0:01:26.1]} 39... Bc6 {[%clk
0:00:55.6]} 40. Rg5+ {[%clk 0:01:23.9]} 40... Kh8 {[%clk 0:00:51.1]} 41. Kf6
{[%clk 0:01:21.6]} 41... h6 {[%clk 0:00:48.5]} 42. Rg3 {[%clk 0:01:20.3]} 42...
Rxa2 {[%clk 0:00:42.4]} 43. Be5 {[%clk 0:01:19]} 43... Re2 {[%clk 0:00:33.2]}
44. e7 {[%clk 0:01:08.2]} 44... h5 {[%clk 0:00:31.3]} 45. Ke6+ {[%clk
0:01:01.9]} 45... Kh7 {[%clk 0:00:30.5]} 46. Kd6 {[%clk 0:01:00.8]} 46... Bb5
{[%clk 0:00:28.1]} 47. Rg7+ {[%clk 0:00:57.4]} 47... Kh6 {[%clk 0:00:27.7]} 48.
Rg8 {[%clk 0:00:57.6]} 48... h4 {[%clk 0:00:25.7]} 49. e8=Q {[%clk 0:00:55.4]}
49... Bxe8 {[%clk 0:00:25.3]} 50. Rxe8 {[%clk 0:00:56]} 50... Kg6 {[%clk
0:00:25.7]} 51. Rh8 {[%clk 0:00:54.3]} 51... Kf5 {[%clk 0:00:24.6]} 52. Bd4
{[%clk 0:00:54.5]} 52... Kg4 {[%clk 0:00:23.6]} 53. c6 {[%clk 0:00:54.6]} 1-0

[Event "Late-Titled-Tuesday-Blitz-February-27-2024"]
[Site "Chess.com"]
[Date "2024.02.27"]
[Round "11"]
[White "tteshan"]
[Black "cthulhuuu"]
[Result "1-0"]
[WhiteElo "2594"]
[BlackElo "2451"]
[TimeControl "180+1"]
[EndTime "16:06:01 PST"]
[Termination "tteshan won on time"]

1. e4 {[%clk 0:03:00.9]} 1... d6 {[%clk 0:02:50]} 2. d4 {[%clk 0:03:00.6]} 2...
Nf6 {[%clk 0:02:49.8]} 3. Nc3 {[%clk 0:02:59.6]} 3... c6 {[%clk 0:02:50.2]} 4.
Nf3 {[%clk 0:02:56.9]} 4... Bg4 {[%clk 0:02:48.1]} 5. Bc4 {[%clk 0:02:56.3]}
5... e6 {[%clk 0:02:47.9]} 6. a4 {[%clk 0:02:54.6]} 6... d5 {[%clk 0:02:47.5]}
7. Bd3 {[%clk 0:02:49.4]} 7... Bb4 {[%clk 0:02:39.5]} 8. exd5 {[%clk 0:02:40.1]}
8... cxd5 {[%clk 0:02:38.4]} 9. O-O {[%clk 0:02:39.2]} 9... O-O {[%clk
0:02:37.1]} 10. h3 {[%clk 0:02:36]} 10... Bh5 {[%clk 0:02:33.4]} 11. Bg5 {[%clk
0:02:30.7]} 11... Nc6 {[%clk 0:02:27.7]} 12. Ne2 {[%clk 0:02:24.3]} 12... Bxf3
{[%clk 0:02:25.4]} 13. gxf3 {[%clk 0:02:25.2]} 13... Be7 {[%clk 0:02:24.6]} 14.
c3 {[%clk 0:02:22.9]} 14... Nh5 {[%clk 0:02:23.1]} 15. Bxe7 {[%clk 0:02:18.7]}
15... Qxe7 {[%clk 0:02:24]} 16. Qd2 {[%clk 0:02:04.3]} 16... Qh4 {[%clk
0:02:21.8]} 17. Kg2 {[%clk 0:02:02.9]} 17... f5 {[%clk 0:02:18.8]} 18. f4 {[%clk
0:01:55.9]} 18... Rf6 {[%clk 0:02:15.9]} 19. Qe3 {[%clk 0:01:49.5]} 19... Kh8
{[%clk 0:01:55.7]} 20. Kh2 {[%clk 0:01:47]} 20... Rh6 {[%clk 0:01:55.8]} 21. Rg1
{[%clk 0:01:43.3]} 21... Ne7 {[%clk 0:01:09.6]} 22. Rg2 {[%clk 0:00:39.4]} 22...
Ng6 {[%clk 0:01:09.1]} 23. Rag1 {[%clk 0:00:32.3]} 23... Nhxf4 {[%clk
0:01:07.4]} 24. Nxf4 {[%clk 0:00:31]} 24... Nxf4 {[%clk 0:01:06.9]} 25. Rg3
{[%clk 0:00:31]} 25... Rf8 {[%clk 0:00:51.8]} 26. Bf1 {[%clk 0:00:30.5]} 26...
Ng6 {[%clk 0:00:36.4]} 27. Qxe6 {[%clk 0:00:25.1]} 27... f4 {[%clk 0:00:31.8]}
28. Rf3 {[%clk 0:00:21.3]} 28... Qd8 {[%clk 0:00:27.9]} 29. Qg4 {[%clk
0:00:17.7]} 29... Qf6 {[%clk 0:00:26.6]} 30. Bd3 {[%clk 0:00:17.4]} 30... Rh4
{[%clk 0:00:25.8]} 31. Qg5 {[%clk 0:00:16.4]} 31... Rh6 {[%clk 0:00:09.4]} 32.
Qxf6 {[%clk 0:00:14.8]} 32... Rxf6 {[%clk 0:00:10.3]} 33. Rg5 {[%clk 0:00:14.7]}
33... Ne7 {[%clk 0:00:10.7]} 34. Bb5 {[%clk 0:00:11.3]} 34... Rf7 {[%clk
0:00:03.3]} 35. Re5 {[%clk 0:00:11.2]} 35... Rhf6 {[%clk 0:00:01.4]} 36. Be8
{[%clk 0:00:10.8]} 36... Rf8 {[%clk 0:00:01.2]} 37. Rxe7 {[%clk 0:00:11]} 1-0

[Event "Late-Titled-Tuesday-Blitz-February-27-2024"]
[Site "Chess.com"]
[Date "2024.02.27"]
[Round "11"]
[White "rhungaski"]
[Black "emeli_chess"]
[Result "1-0"]
[WhiteElo "2590"]
[BlackElo "2440"]
[TimeControl "180+1"]
[EndTime "16:06:01 PST"]
[Termination "rhungaski won by resignation"]

1. e4 {[%clk 0:03:00.9]} 1... e5 {[%clk 0:02:57.1]} 2. Nf3 {[%clk 0:03:00.6]}
2... Nc6 {[%clk 0:02:57.4]} 3. d4 {[%clk 0:03:00.1]} 3... exd4 {[%clk
0:02:57.2]} 4. Nxd4 {[%clk 0:03:01]} 4... Bc5 {[%clk 0:02:57.3]} 5. Be3 {[%clk
0:02:59.6]} 5... Qf6 {[%clk 0:02:56.3]} 6. Nb5 {[%clk 0:02:58.5]} 6... Bxe3
{[%clk 0:02:45.7]} 7. fxe3 {[%clk 0:02:59.4]} 7... Qxb2 {[%clk 0:02:35.7]} 8.
N1c3 {[%clk 0:02:51.4]} 8... Qb4 {[%clk 0:02:28.7]} 9. Nxc7+ {[%clk 0:02:35.9]}
9... Kd8 {[%clk 0:02:26.6]} 10. Nd5 {[%clk 0:02:35.1]} 10... Qa5 {[%clk
0:02:25.1]} 11. Qg4 {[%clk 0:02:05.9]} 11... g6 {[%clk 0:02:10.9]} 12. Qf4
{[%clk 0:01:58.8]} 12... Nce7 {[%clk 0:02:04.3]} 13. O-O-O {[%clk 0:01:42.9]}
13... b5 {[%clk 0:01:33.8]} 14. Bxb5 {[%clk 0:01:29.3]} 14... Ba6 {[%clk
0:01:25.7]} 15. Bxa6 {[%clk 0:01:24]} 15... Qa3+ {[%clk 0:01:13.4]} 16. Kd2
{[%clk 0:01:21.2]} 16... Qxa6 {[%clk 0:01:13.1]} 17. Qc7+ {[%clk 0:01:19.5]}
17... Ke8 {[%clk 0:01:13.5]} 18. Qe5 {[%clk 0:01:19]} 18... f6 {[%clk
0:01:07.2]} 19. Nc7+ {[%clk 0:01:13.7]} 19... Kf7 {[%clk 0:01:06.8]} 20. Qxe7+
{[%clk 0:01:09.6]} 20... Nxe7 {[%clk 0:01:04.3]} 21. Nxa6 {[%clk 0:01:10.5]}
21... Rhc8 {[%clk 0:01:01.3]} 22. Nb4 {[%clk 0:01:08]} 22... Rc4 {[%clk
0:01:00.5]} 23. Nbd5 {[%clk 0:00:32.8]} 23... Nxd5 {[%clk 0:00:56.2]} 24. Nxd5
{[%clk 0:00:28.7]} 24... Rxe4 {[%clk 0:00:55.6]} 25. Rhf1 {[%clk 0:00:27.7]}
25... f5 {[%clk 0:00:54.7]} 26. Rf4 {[%clk 0:00:25.7]} 26... Re5 {[%clk
0:00:46.2]} 27. c4 {[%clk 0:00:23.9]} 27... Rc8 {[%clk 0:00:45.8]} 28. Rb1
{[%clk 0:00:22.3]} 28... a5 {[%clk 0:00:32.4]} 29. Rb7 {[%clk 0:00:21.6]} 29...
Ke6 {[%clk 0:00:31.3]} 30. Rd4 {[%clk 0:00:21.5]} 30... Kd6 {[%clk 0:00:23.4]}
31. Rb6+ {[%clk 0:00:16]} 31... Kc5 {[%clk 0:00:22.6]} 32. Rb5+ {[%clk
0:00:15.1]} 32... Kc6 {[%clk 0:00:22.9]} 33. Rxa5 {[%clk 0:00:13.8]} 33... Rb8
{[%clk 0:00:21.9]} 34. Kc3 {[%clk 0:00:13.6]} 34... Rb1 {[%clk 0:00:19.7]} 35.
Nb4+ {[%clk 0:00:13.8]} 35... Kc7 {[%clk 0:00:19.1]} 36. Rxe5 {[%clk 0:00:13.5]}
36... Rc1+ {[%clk 0:00:18.4]} 37. Nc2 {[%clk 0:00:13.8]} 37... Rg1 {[%clk
0:00:18]} 38. Rc5+ {[%clk 0:00:14.1]} 38... Kd8 {[%clk 0:00:17.5]} 39. Rcd5
{[%clk 0:00:14]} 39... Rxg2 {[%clk 0:00:17.1]} 40. Rxd7+ {[%clk 0:00:14.4]}
40... Kc8 {[%clk 0:00:17.6]} 41. Rxh7 {[%clk 0:00:14.4]} 41... g5 {[%clk
0:00:17.8]} 42. Rd6 {[%clk 0:00:14.3]} 42... f4 {[%clk 0:00:17.5]} 43. Rg6
{[%clk 0:00:14.4]} 1-0

[Event "Late-Titled-Tuesday-Blitz-February-27-2024"]
[Site "Chess.com"]
[Date "2024.02.27"]
[Round "11"]
[White "ozates"]
[Black "Abund"]
[Result "0-1"]
[WhiteElo "2619"]
[BlackElo "2745"]
[TimeControl "180+1"]
[EndTime "16:06:06 PST"]
[Termination "Abund won by resignation"]

1. c4 {[%clk 0:02:54.7]} 1... e6 {[%clk 0:02:58.6]} 2. Nc3 {[%clk 0:02:48.5]}
2... d5 {[%clk 0:02:58.7]} 3. d4 {[%clk 0:02:48]} 3... Nf6 {[%clk 0:02:58.8]} 4.
cxd5 {[%clk 0:02:48.1]} 4... exd5 {[%clk 0:02:59]} 5. Bg5 {[%clk 0:02:45.9]}
5... c6 {[%clk 0:02:59.4]} 6. e3 {[%clk 0:02:45.3]} 6... h6 {[%clk 0:03:00]} 7.
Bh4 {[%clk 0:02:45.2]} 7... Be7 {[%clk 0:03:00.5]} 8. Bd3 {[%clk 0:02:44.2]}
8... O-O {[%clk 0:03:00.9]} 9. Nge2 {[%clk 0:02:44.5]} 9... Re8 {[%clk
0:02:53.5]} 10. Qc2 {[%clk 0:02:43.3]} 10... Nbd7 {[%clk 0:02:48.5]} 11. O-O-O
{[%clk 0:02:40.9]} 11... b5 {[%clk 0:02:30]} 12. f3 {[%clk 0:02:40.4]} 12... Qa5
{[%clk 0:02:15.8]} 13. Kb1 {[%clk 0:02:35.8]} 13... b4 {[%clk 0:02:01.4]} 14.
Na4 {[%clk 0:02:34.8]} 14... Ba6 {[%clk 0:01:48.2]} 15. Nf4 {[%clk 0:02:32.1]}
15... Rac8 {[%clk 0:01:39.9]} 16. Bxa6 {[%clk 0:02:30.6]} 16... Qxa6 {[%clk
0:01:40]} 17. Nd3 {[%clk 0:02:31.5]} 17... Qb5 {[%clk 0:01:26.8]} 18. Rhe1
{[%clk 0:02:30.6]} 18... Bd6 {[%clk 0:01:11]} 19. Bg3 {[%clk 0:02:25.7]} 19...
Bf8 {[%clk 0:00:59.9]} 20. Rc1 {[%clk 0:02:20.3]} 20... a5 {[%clk 0:00:59.4]}
21. Nac5 {[%clk 0:02:20.1]} 21... Nxc5 {[%clk 0:00:54.9]} 22. Nxc5 {[%clk
0:02:20.1]} 22... Bxc5 {[%clk 0:00:54.8]} 23. dxc5 {[%clk 0:02:08]} 23... Re6
{[%clk 0:00:51.2]} 24. Bf4 {[%clk 0:02:02.5]} 24... Rce8 {[%clk 0:00:50.4]} 25.
g4 {[%clk 0:02:02.3]} 25... Nd7 {[%clk 0:00:46.4]} 26. h4 {[%clk 0:02:00.5]}
26... Ne5 {[%clk 0:00:45.7]} 27. Rcd1 {[%clk 0:01:47.5]} 27... Nxf3 {[%clk
0:00:37.1]} 28. Rf1 {[%clk 0:01:47.8]} 28... Nxh4 {[%clk 0:00:32.2]} 29. g5
{[%clk 0:01:46.7]} 29... h5 {[%clk 0:00:27.6]} 30. Qh2 {[%clk 0:01:45.8]} 30...
Ng6 {[%clk 0:00:22.4]} 31. Qxh5 {[%clk 0:01:45.7]} 31... b3 {[%clk 0:00:22.8]}
32. a3 {[%clk 0:01:42.5]} 32... Qxc5 {[%clk 0:00:21.7]} 33. Rd2 {[%clk
0:01:33.9]} 33... Qc4 {[%clk 0:00:16.5]} 34. Rdf2 {[%clk 0:01:30.2]} 34... d4
{[%clk 0:00:15.6]} 35. e4 {[%clk 0:01:11.6]} 35... Rxe4 {[%clk 0:00:13.9]} 36.
Bc1 {[%clk 0:01:12.2]} 36... Re1 {[%clk 0:00:10.3]} 37. Qd1 {[%clk 0:01:00]}
37... Rxd1 {[%clk 0:00:10.3]} 38. Rxd1 {[%clk 0:01:00.5]} 38... d3 {[%clk
0:00:10.8]} 39. Rfd2 {[%clk 0:00:58.5]} 39... Qc2+ {[%clk 0:00:10.3]} 40. Ka1
{[%clk 0:00:58.7]} 40... Qc4 {[%clk 0:00:07.6]} 41. Rxd3 {[%clk 0:00:58.6]}
41... a4 {[%clk 0:00:08]} 42. Rc3 {[%clk 0:00:55.6]} 42... Qe6 {[%clk
0:00:07.7]} 43. Rcd3 {[%clk 0:00:46.2]} 43... Qc8 {[%clk 0:00:07.6]} 44. Bd2
{[%clk 0:00:45.5]} 44... Rd8 {[%clk 0:00:07.3]} 45. Re3 {[%clk 0:00:36.1]} 45...
Qf5 {[%clk 0:00:05.8]} 46. Re2 {[%clk 0:00:35.1]} 46... Qc2 {[%clk 0:00:05.8]}
47. Rde1 {[%clk 0:00:32.5]} 47... Rxd2 {[%clk 0:00:06.1]} 48. Re8+ {[%clk
0:00:32.8]} 48... Nf8 {[%clk 0:00:06.7]} 0-1

[Event "Late-Titled-Tuesday-Blitz-February-27-2024"]
[Site "Chess.com"]
[Date "2024.02.27"]
[Round "11"]
[White "dimoni64"]
[Black "cthake"]
[Result "1-0"]
[WhiteElo "1989"]
[BlackElo "1829"]
[TimeControl "180+1"]
[EndTime "16:06:13 PST"]
[Termination "dimoni64 won on time"]

1. d4 {[%clk 0:03:00.9]} 1... Nf6 {[%clk 0:02:42.4]} 2. c4 {[%clk 0:03:00.7]}
2... c5 {[%clk 0:02:42]} 3. Nf3 {[%clk 0:02:59.5]} 3... g6 {[%clk 0:02:40.3]} 4.
Nc3 {[%clk 0:02:58.3]} 4... Bg7 {[%clk 0:02:40.1]} 5. dxc5 {[%clk 0:02:52.9]}
5... O-O {[%clk 0:02:39]} 6. e4 {[%clk 0:02:52.4]} 6... Qa5 {[%clk 0:02:28.7]}
7. Qc2 {[%clk 0:02:40.2]} 7... Nxe4 {[%clk 0:02:11.9]} 8. Qxe4 {[%clk
0:02:20.5]} 8... Bxc3+ {[%clk 0:02:10.8]} 9. Bd2 {[%clk 0:02:18.5]} 9... Bxd2+
{[%clk 0:02:07.3]} 10. Nxd2 {[%clk 0:02:17.3]} 10... Qxc5 {[%clk 0:02:06.6]} 11.
Bd3 {[%clk 0:02:13.4]} 11... Nc6 {[%clk 0:01:45.1]} 12. O-O {[%clk 0:02:11.1]}
12... d6 {[%clk 0:01:39]} 13. Qh4 {[%clk 0:01:46.6]} 13... Ne5 {[%clk
0:01:34.6]} 14. Be2 {[%clk 0:01:40.6]} 14... e6 {[%clk 0:01:11.8]} 15. Qh6
{[%clk 0:00:57.6]} 15... f5 {[%clk 0:00:52.9]} 16. h4 {[%clk 0:00:46.9]} 16...
Nf7 {[%clk 0:00:48.3]} 17. Qe3 {[%clk 0:00:41.2]} 17... Qxe3 {[%clk 0:00:47]}
18. fxe3 {[%clk 0:00:42.1]} 18... e5 {[%clk 0:00:45.9]} 19. Rad1 {[%clk
0:00:36.8]} 19... Be6 {[%clk 0:00:45.2]} 20. b3 {[%clk 0:00:35.8]} 20... Rad8
{[%clk 0:00:43.4]} 21. e4 {[%clk 0:00:26.5]} 21... f4 {[%clk 0:00:41.8]} 22. Nb1
{[%clk 0:00:20.4]} 22... g5 {[%clk 0:00:41.7]} 23. hxg5 {[%clk 0:00:18.8]} 23...
Nxg5 {[%clk 0:00:41.8]} 24. Nc3 {[%clk 0:00:17.4]} 24... Rf7 {[%clk 0:00:35.3]}
25. Nd5 {[%clk 0:00:17]} 25... Nxe4 {[%clk 0:00:32.1]} 26. Bf3 {[%clk
0:00:16.4]} 26... Ng3 {[%clk 0:00:29.2]} 27. Rfe1 {[%clk 0:00:15.9]} 27... Kg7
{[%clk 0:00:23.2]} 28. c5 {[%clk 0:00:11.4]} 28... dxc5 {[%clk 0:00:20.2]} 29.
Rxe5 {[%clk 0:00:10.8]} 29... Bxd5 {[%clk 0:00:17.4]} 30. Rexd5 {[%clk
0:00:07.5]} 30... Rxd5 {[%clk 0:00:15.1]} 31. Rxd5 {[%clk 0:00:07.4]} 31... b6
{[%clk 0:00:12.3]} 32. Rg5+ {[%clk 0:00:06.7]} 32... Kf6 {[%clk 0:00:09.3]} 33.
Rd5 {[%clk 0:00:06.3]} 33... Re7 {[%clk 0:00:06.8]} 34. Rd1 {[%clk 0:00:05.9]}
34... Ne2+ {[%clk 0:00:05.5]} 35. Kf2 {[%clk 0:00:05.4]} 35... Nd4 {[%clk
0:00:05.1]} 36. Bd5 {[%clk 0:00:03.5]} 36... Re2+ {[%clk 0:00:03.6]} 37. Kf1
{[%clk 0:00:03.6]} 37... Rxa2 {[%clk 0:00:03.6]} 38. Bc4 {[%clk 0:00:03.1]}
38... Rc2 {[%clk 0:00:02.6]} 39. Re1 {[%clk 0:00:03.2]} 1-0